[Event "Early-Titled-Tuesday-Blitz-March-26-2024"]
[Site "Chess.com"]
[Date "2024.03.26"]
[Round "8"]
[White "Suleyman_Chess06"]
[Black "Sanan_Sjugirov"]
[Result "0-1"]
[WhiteElo "2725"]
[BlackElo "3028"]
[TimeControl "180+1"]
[EndTime "9:27:42 PDT"]
[Termination "Sanan_Sjugirov won by resignation"]

1. Nf3 {[%clk 0:03:00.9]} 1... Nf6 {[%clk 0:02:59.6]} 2. g3 {[%clk 0:03:01.4]}
2... g6 {[%clk 0:02:59.5]} 3. Bg2 {[%clk 0:03:01.8]} 3... Bg7 {[%clk 0:03:00.2]}
4. O-O {[%clk 0:03:02.6]} 4... d5 {[%clk 0:03:00.4]} 5. d4 {[%clk 0:03:03.5]}
5... O-O {[%clk 0:02:59.5]} 6. c4 {[%clk 0:03:03.8]} 6... Nc6 {[%clk 0:02:59.6]}
7. cxd5 {[%clk 0:03:03.4]} 7... Nxd5 {[%clk 0:03:00.5]} 8. e3 {[%clk 0:03:04.1]}
8... Nb6 {[%clk 0:02:57.3]} 9. Nc3 {[%clk 0:03:04.3]} 9... Re8 {[%clk
0:02:48.8]} 10. Nd2 {[%clk 0:03:01.1]} 10... e5 {[%clk 0:02:34.5]} 11. d5 {[%clk
0:02:58.5]} 11... Nb4 {[%clk 0:02:33]} 12. Qb3 {[%clk 0:02:55.7]} 12... Nd3
{[%clk 0:02:12.6]} 13. Qc2 {[%clk 0:02:41.1]} 13... Nb4 {[%clk 0:01:55.7]} 14.
Qb3 {[%clk 0:02:40.7]} 14... a5 {[%clk 0:01:56.4]} 15. a3 {[%clk 0:02:38.6]}
15... Nd3 {[%clk 0:01:52.3]} 16. Qc2 {[%clk 0:02:38.6]} 16... Nc5 {[%clk
0:01:42.9]} 17. Nb5 {[%clk 0:02:25.7]} 17... Bf8 {[%clk 0:01:40.1]} 18. Rd1
{[%clk 0:02:25.3]} 18... Bf5 {[%clk 0:01:37.2]} 19. e4 {[%clk 0:02:24.4]} 19...
Bd7 {[%clk 0:01:36.8]} 20. Nc3 {[%clk 0:02:22]} 20... a4 {[%clk 0:01:34.5]} 21.
Nf3 {[%clk 0:02:17.2]} 21... Nb3 {[%clk 0:01:32.7]} 22. Rb1 {[%clk 0:02:16.3]}
22... Bg4 {[%clk 0:01:15.1]} 23. h3 {[%clk 0:02:11.4]} 23... Bxf3 {[%clk
0:01:15]} 24. Bxf3 {[%clk 0:02:12.3]} 24... Nd4 {[%clk 0:01:14.6]} 25. Qd3
{[%clk 0:02:12.4]} 25... c5 {[%clk 0:01:10]} 26. Bg2 {[%clk 0:02:08.9]} 26...
Nc8 {[%clk 0:01:06.8]} 27. Be3 {[%clk 0:02:04.9]} 27... Nd6 {[%clk 0:01:06.6]}
28. Ne2 {[%clk 0:01:54.7]} 28... b5 {[%clk 0:00:56.4]} 29. Nxd4 {[%clk
0:01:50.5]} 29... exd4 {[%clk 0:00:56.8]} 30. Bd2 {[%clk 0:01:45.4]} 30... Bg7
{[%clk 0:00:53.7]} 31. Re1 {[%clk 0:01:42.4]} 31... c4 {[%clk 0:00:52.7]} 32.
Qf3 {[%clk 0:01:40]} 32... d3 {[%clk 0:00:49.5]} 33. Bc3 {[%clk 0:01:33.9]}
33... Bxc3 {[%clk 0:00:47.2]} 34. bxc3 {[%clk 0:01:34.8]} 34... Qg5 {[%clk
0:00:24.2]} 35. h4 {[%clk 0:01:27.2]} 35... Qe5 {[%clk 0:00:23.7]} 36. Qf4
{[%clk 0:01:13.7]} 36... f6 {[%clk 0:00:24.1]} 37. Qxe5 {[%clk 0:01:11.4]} 37...
fxe5 {[%clk 0:00:25]} 38. f3 {[%clk 0:01:10.1]} 38... Kg7 {[%clk 0:00:24.6]} 39.
Kf2 {[%clk 0:01:10.6]} 39... h6 {[%clk 0:00:23.4]} 40. Ke3 {[%clk 0:01:10.8]}
40... g5 {[%clk 0:00:23.7]} 41. h5 {[%clk 0:01:08.9]} 41... Rf8 {[%clk 0:00:21]}
42. g4 {[%clk 0:01:09.2]} 42... Rf7 {[%clk 0:00:19]} 43. Rf1 {[%clk 0:01:08.2]}
43... Kf8 {[%clk 0:00:17.8]} 44. Rb2 {[%clk 0:01:06.4]} 44... Ke7 {[%clk
0:00:18.2]} 45. Re1 {[%clk 0:01:03]} 45... Kd7 {[%clk 0:00:18.3]} 46. Rbb1
{[%clk 0:01:03.6]} 46... Kc7 {[%clk 0:00:18.7]} 47. Red1 {[%clk 0:01:03.8]}
47... Kb6 {[%clk 0:00:19]} 48. Rd2 {[%clk 0:01:00.5]} 48... Kc5 {[%clk
0:00:19.5]} 49. Rb4 {[%clk 0:00:58.5]} 49... Raf8 {[%clk 0:00:19.6]} 50. Rdb2
{[%clk 0:00:56.9]} 50... Rf4 {[%clk 0:00:19.2]} 51. Rb1 {[%clk 0:00:51.1]} 51...
Ra8 {[%clk 0:00:18.9]} 52. R1b2 {[%clk 0:00:50.6]} 52... Ra5 {[%clk 0:00:16.7]}
53. Rb1 {[%clk 0:00:48.2]} 53... Rf8 {[%clk 0:00:16.9]} 54. R1b2 {[%clk
0:00:47.5]} 54... Ne8 {[%clk 0:00:16.5]} 55. Rb1 {[%clk 0:00:44.8]} 55... Nc7
{[%clk 0:00:16.7]} 56. R1b2 {[%clk 0:00:40.8]} 56... Ra6 {[%clk 0:00:15.4]} 57.
Rb1 {[%clk 0:00:38.2]} 57... Rb6 {[%clk 0:00:14.8]} 58. R4b2 {[%clk 0:00:33.6]}
58... Rd6 {[%clk 0:00:14.2]} 59. Rb4 {[%clk 0:00:33.2]} 59... Rb6 {[%clk
0:00:09.8]} 60. R4b2 {[%clk 0:00:32.1]} 60... Rfb8 {[%clk 0:00:08]} 61. Rc1
{[%clk 0:00:24.9]} 61... Na6 {[%clk 0:00:08]} 62. Rcb1 {[%clk 0:00:24.1]} 62...
Kd6 {[%clk 0:00:07.9]} 63. Rf1 {[%clk 0:00:19.2]} 63... Nc5 {[%clk 0:00:08.1]}
64. Rd1 {[%clk 0:00:18.4]} 64... Nb3 {[%clk 0:00:08.2]} 65. Bf1 {[%clk
0:00:16.5]} 65... Rf8 {[%clk 0:00:07.7]} 66. Bg2 {[%clk 0:00:16.3]} 66... Rb7
{[%clk 0:00:07.5]} 67. Bf1 {[%clk 0:00:15.4]} 67... Rbf7 {[%clk 0:00:07.1]} 68.
Bg2 {[%clk 0:00:16]} 68... Kc5 {[%clk 0:00:03.7]} 69. Rf1 {[%clk 0:00:15]} 69...
Rf4 {[%clk 0:00:03.5]} 70. Rd1 {[%clk 0:00:14.7]} 70... R4f6 {[%clk 0:00:03.4]}
71. Rf1 {[%clk 0:00:14.8]} 71... R6f7 {[%clk 0:00:03.8]} 72. Rd1 {[%clk
0:00:15.4]} 72... Rf4 {[%clk 0:00:04.7]} 73. Rf1 {[%clk 0:00:15.6]} 73... Nd4
{[%clk 0:00:04.5]} 74. cxd4+ {[%clk 0:00:09.5]} 74... exd4+ {[%clk 0:00:05.4]}
75. Kf2 {[%clk 0:00:10.2]} 75... Rxe4 {[%clk 0:00:05.7]} 76. Rfb1 {[%clk
0:00:08.8]} 76... Re2+ {[%clk 0:00:04.4]} 77. Rxe2 {[%clk 0:00:06.7]} 77... dxe2
{[%clk 0:00:05.3]} 78. Kxe2 {[%clk 0:00:07.6]} 78... d3+ {[%clk 0:00:06.1]} 79.
Kf2 {[%clk 0:00:05.1]} 79... Re8 {[%clk 0:00:05.5]} 80. f4 {[%clk 0:00:04.9]}
80... gxf4 {[%clk 0:00:05.4]} 81. Bf3 {[%clk 0:00:02.9]} 81... d2 {[%clk
0:00:05.3]} 82. Bd1 {[%clk 0:00:02.3]} 82... c3 {[%clk 0:00:05.2]} 83. Kf3
{[%clk 0:00:02.7]} 83... Re1 {[%clk 0:00:04.4]} 84. Kxf4 {[%clk 0:00:01.5]}
84... Rxd1 {[%clk 0:00:04.7]} 85. Rxd1 {[%clk 0:00:01.7]} 85... c2 {[%clk
0:00:05.5]} 86. Rxd2 {[%clk 0:00:02.4]} 86... c1=Q {[%clk 0:00:06.1]} 87. Ke3
{[%clk 0:00:03.3]} 87... Qxa3+ {[%clk 0:00:06.3]} 88. Rd3 {[%clk 0:00:03.8]}
88... Qc1+ {[%clk 0:00:06.5]} 89. Ke2 {[%clk 0:00:04]} 89... Qc4 {[%clk
0:00:06.3]} 90. d6 {[%clk 0:00:04.1]} 90... Qxg4+ {[%clk 0:00:06.3]} 91. Ke3
{[%clk 0:00:03.9]} 91... Qd7 {[%clk 0:00:06.9]} 92. Kf4 {[%clk 0:00:04.4]} 92...
b4 {[%clk 0:00:07]} 93. Ke5 {[%clk 0:00:04.4]} 93... b3 {[%clk 0:00:07.3]} 94.
Rc3+ {[%clk 0:00:04.9]} 94... Kb4 {[%clk 0:00:08]} 95. Rc7 {[%clk 0:00:05.3]}
95... Qd8 {[%clk 0:00:08.2]} 96. Ke6 {[%clk 0:00:04.7]} 96... b2 {[%clk
0:00:07.9]} 97. Rb7+ {[%clk 0:00:04.2]} 97... Ka3 {[%clk 0:00:08.4]} 98. d7
{[%clk 0:00:04.7]} 98... Ka2 {[%clk 0:00:08.5]} 99. Rb8 {[%clk 0:00:02.4]} 99...
Qxb8 {[%clk 0:00:08.1]} 100. d8=Q {[%clk 0:00:03.3]} 0-1

[Event "Early-Titled-Tuesday-Blitz-March-26-2024"]
[Site "Chess.com"]
[Date "2024.03.26"]
[Round "8"]
[White "MatthewG-p4p"]
[Black "Goryachkina"]
[Result "1/2-1/2"]
[WhiteElo "2867"]
[BlackElo "2682"]
[TimeControl "180+1"]
[EndTime "9:29:45 PDT"]
[Termination "Game drawn by 50-move rule"]

1. f4 {[%clk 0:03:00.3]} 1... d5 {[%clk 0:02:56.2]} 2. Nf3 {[%clk 0:03:00.2]}
2... Nf6 {[%clk 0:02:55.5]} 3. g3 {[%clk 0:03:00.7]} 3... g6 {[%clk 0:02:55.7]}
4. Bg2 {[%clk 0:03:01]} 4... Bg7 {[%clk 0:02:56.3]} 5. O-O {[%clk 0:03:01.8]}
5... O-O {[%clk 0:02:56.6]} 6. d3 {[%clk 0:03:02.7]} 6... Nc6 {[%clk 0:02:56.5]}
7. Nc3 {[%clk 0:02:59.6]} 7... d4 {[%clk 0:02:40.3]} 8. Ne4 {[%clk 0:02:59.7]}
8... Nd5 {[%clk 0:02:36.5]} 9. Bd2 {[%clk 0:02:56.1]} 9... Bg4 {[%clk
0:02:33.1]} 10. c4 {[%clk 0:02:34.3]} 10... dxc3 {[%clk 0:02:02.3]} 11. Nxc3
{[%clk 0:02:32.2]} 11... Bxf3 {[%clk 0:01:52.1]} 12. Bxf3 {[%clk 0:02:31.5]}
12... e6 {[%clk 0:01:52.1]} 13. Rc1 {[%clk 0:02:15.2]} 13... Nd4 {[%clk
0:01:49.4]} 14. Bg2 {[%clk 0:02:15.7]} 14... c6 {[%clk 0:01:44.6]} 15. e3 {[%clk
0:02:00.6]} 15... Nf5 {[%clk 0:01:40.2]} 16. Nxd5 {[%clk 0:01:28.3]} 16... exd5
{[%clk 0:01:37.9]} 17. Qb3 {[%clk 0:01:28.3]} 17... Qb6 {[%clk 0:01:32.4]} 18.
d4 {[%clk 0:01:16.5]} 18... Rfe8 {[%clk 0:01:30.8]} 19. Rfe1 {[%clk 0:01:11.9]}
19... Qxb3 {[%clk 0:01:22.8]} 20. axb3 {[%clk 0:01:11.7]} 20... Nd6 {[%clk
0:01:22.4]} 21. Bb4 {[%clk 0:01:04.4]} 21... Ne4 {[%clk 0:01:21.8]} 22. Ra1
{[%clk 0:01:03.9]} 22... a6 {[%clk 0:01:20.3]} 23. Kf1 {[%clk 0:01:00.9]} 23...
f5 {[%clk 0:01:18.5]} 24. Ke2 {[%clk 0:01:00.7]} 24... Kf7 {[%clk 0:01:18.7]}
25. Bf3 {[%clk 0:00:59.5]} 25... h5 {[%clk 0:01:17.4]} 26. Kd3 {[%clk 0:00:59]}
26... Re6 {[%clk 0:01:17.1]} 27. Re2 {[%clk 0:00:55.7]} 27... Rae8 {[%clk
0:01:17]} 28. Be1 {[%clk 0:00:56.4]} 28... Bf8 {[%clk 0:01:11.2]} 29. h3 {[%clk
0:00:56]} 29... Nf6 {[%clk 0:01:02.1]} 30. Bf2 {[%clk 0:00:56.1]} 30... Bd6
{[%clk 0:00:58.5]} 31. Rg1 {[%clk 0:00:54.8]} 31... Ne4 {[%clk 0:00:44.3]} 32.
Be1 {[%clk 0:00:54.8]} 32... Nf6 {[%clk 0:00:41.8]} 33. g4 {[%clk 0:00:50.8]}
33... hxg4 {[%clk 0:00:39.5]} 34. hxg4 {[%clk 0:00:51.7]} 34... Nxg4 {[%clk
0:00:36.2]} 35. Bxg4 {[%clk 0:00:52.6]} 35... fxg4 {[%clk 0:00:36.5]} 36. Rxg4
{[%clk 0:00:53.5]} 36... Rh8 {[%clk 0:00:36.3]} 37. Reg2 {[%clk 0:00:51]} 37...
Rh3 {[%clk 0:00:33.6]} 38. Bd2 {[%clk 0:00:50.1]} 38... Rf6 {[%clk 0:00:27.7]}
39. Ba5 {[%clk 0:00:42.9]} 39... Bxf4 {[%clk 0:00:20.2]} 40. Bd2 {[%clk
0:00:29.7]} 40... Bd6 {[%clk 0:00:17.6]} 41. Kc2 {[%clk 0:00:28.7]} 41... Kg7
{[%clk 0:00:11.6]} 42. e4 {[%clk 0:00:28.8]} 42... dxe4 {[%clk 0:00:05.4]} 43.
Rxe4 {[%clk 0:00:29.7]} 43... Rf7 {[%clk 0:00:04.7]} 44. Bc3 {[%clk 0:00:25.6]}
44... Rh2 {[%clk 0:00:03.9]} 45. d5+ {[%clk 0:00:24.6]} 45... Kf8 {[%clk
0:00:03.3]} 46. Rxh2 {[%clk 0:00:18.5]} 46... Bxh2 {[%clk 0:00:04.2]} 47. Bb4+
{[%clk 0:00:19.4]} 47... Kg7 {[%clk 0:00:03.9]} 48. Bc3+ {[%clk 0:00:18.6]}
48... Kf8 {[%clk 0:00:03.8]} 49. dxc6 {[%clk 0:00:16.9]} 49... bxc6 {[%clk
0:00:03.8]} 50. Re6 {[%clk 0:00:17.8]} 50... Rc7 {[%clk 0:00:02.7]} 51. Rxg6
{[%clk 0:00:17.7]} 51... Ke8 {[%clk 0:00:03]} 52. Kd3 {[%clk 0:00:17.8]} 52...
Kd7 {[%clk 0:00:03]} 53. Kc4 {[%clk 0:00:18.4]} 53... Kc8 {[%clk 0:00:03]} 54.
Ba5 {[%clk 0:00:18.5]} 54... Rd7 {[%clk 0:00:02.4]} 55. Rxc6+ {[%clk 0:00:18.9]}
55... Kb7 {[%clk 0:00:02.9]} 56. Rb6+ {[%clk 0:00:19.5]} 56... Ka7 {[%clk
0:00:03.4]} 57. Rh6 {[%clk 0:00:20.4]} 57... Bc7 {[%clk 0:00:03.4]} 58. Bc3
{[%clk 0:00:19.6]} 58... Bb6 {[%clk 0:00:03.9]} 59. Rg6 {[%clk 0:00:20]} 59...
Rc7+ {[%clk 0:00:04.3]} 60. Kd5 {[%clk 0:00:20.6]} 60... Rd7+ {[%clk 0:00:04.9]}
61. Kc6 {[%clk 0:00:20.9]} 61... Rc7+ {[%clk 0:00:05.3]} 62. Kd6 {[%clk
0:00:21.7]} 62... Rb7 {[%clk 0:00:05.8]} 63. Rg8 {[%clk 0:00:22]} 63... Rh7
{[%clk 0:00:03.5]} 64. Kd5 {[%clk 0:00:20.4]} 64... Rd7+ {[%clk 0:00:03.5]} 65.
Ke6 {[%clk 0:00:20.1]} 65... Rc7 {[%clk 0:00:03.9]} 66. Be5 {[%clk 0:00:19.9]}
66... Rh7 {[%clk 0:00:03]} 67. Kd5 {[%clk 0:00:16.3]} 67... Kb7 {[%clk
0:00:03.1]} 68. Bc3 {[%clk 0:00:14.6]} 68... Rd7+ {[%clk 0:00:02.3]} 69. Ke6
{[%clk 0:00:15.2]} 69... Rc7 {[%clk 0:00:02.5]} 70. Rh8 {[%clk 0:00:15.8]} 70...
Rc8 {[%clk 0:00:02.8]} 71. Rh7+ {[%clk 0:00:15.8]} 71... Rc7 {[%clk 0:00:03.4]}
72. Rh3 {[%clk 0:00:16.7]} 72... Rc6+ {[%clk 0:00:03.9]} 73. Kd5 {[%clk
0:00:16.9]} 73... Rc5+ {[%clk 0:00:04.5]} 74. Ke4 {[%clk 0:00:15.4]} 74... Rc7
{[%clk 0:00:03.9]} 75. Be5 {[%clk 0:00:15.5]} 75... Re7 {[%clk 0:00:04.2]} 76.
Kd5 {[%clk 0:00:16.2]} 76... Bc7 {[%clk 0:00:04.3]} 77. Bf6 {[%clk 0:00:15.5]}
77... Rd7+ {[%clk 0:00:04.4]} 78. Kc4 {[%clk 0:00:16.1]} 78... Bb6 {[%clk
0:00:04.4]} 79. Be5 {[%clk 0:00:15.9]} 79... Bc7 {[%clk 0:00:04.8]} 80. Bc3
{[%clk 0:00:14.1]} 80... Bb6 {[%clk 0:00:05.2]} 81. b4 {[%clk 0:00:14.7]} 81...
Kc6 {[%clk 0:00:04]} 82. Rh6+ {[%clk 0:00:14.3]} 82... Rd6 {[%clk 0:00:04.5]}
83. Rh7 {[%clk 0:00:12.3]} 83... Re6 {[%clk 0:00:04.9]} 84. Rh5 {[%clk
0:00:11.3]} 84... Re4+ {[%clk 0:00:04.8]} 85. Kb3 {[%clk 0:00:11.4]} 85... Re6
{[%clk 0:00:05.4]} 86. Rg5 {[%clk 0:00:11.7]} 86... Ba7 {[%clk 0:00:04.4]} 87.
Ra5 {[%clk 0:00:11.3]} 87... Kb7 {[%clk 0:00:03.6]} 88. Rf5 {[%clk 0:00:12.2]}
88... Kc6 {[%clk 0:00:03.4]} 89. Ka4 {[%clk 0:00:12.7]} 89... Bb6 {[%clk
0:00:03.6]} 90. Rh5 {[%clk 0:00:11.5]} 90... Rd6 {[%clk 0:00:02.7]} 91. Rh8
{[%clk 0:00:11.3]} 91... Re6 {[%clk 0:00:02.9]} 92. Rc8+ {[%clk 0:00:11.6]}
92... Kb7 {[%clk 0:00:03.3]} 93. Rc4 {[%clk 0:00:12.2]} 93... Rc6 {[%clk
0:00:03.5]} 94. Re4 {[%clk 0:00:12.6]} 94... Rd6 {[%clk 0:00:03.6]} 95. b5
{[%clk 0:00:12.6]} 95... axb5+ {[%clk 0:00:03.8]} 96. Kxb5 {[%clk 0:00:13.5]}
96... Rd5+ {[%clk 0:00:04.3]} 97. Kc4 {[%clk 0:00:13.9]} 97... Rd6 {[%clk
0:00:04.8]} 98. Re7+ {[%clk 0:00:13.7]} 98... Kc6 {[%clk 0:00:05]} 99. Rh7
{[%clk 0:00:14.5]} 99... Re6 {[%clk 0:00:05.4]} 100. Rh4 {[%clk 0:00:13.1]}
100... Rd6 {[%clk 0:00:05.2]} 101. b4 {[%clk 0:00:13.5]} 101... Re6 {[%clk
0:00:05.2]} 102. Rh7 {[%clk 0:00:13.4]} 102... Bc7 {[%clk 0:00:04.8]} 103. b5+
{[%clk 0:00:12.6]} 103... Kb6 {[%clk 0:00:02]} 104. Bd4+ {[%clk 0:00:12.6]}
104... Kb7 {[%clk 0:00:02.4]} 105. Kd5 {[%clk 0:00:05]} 105... Rd6+ {[%clk
0:00:02.1]} 106. Kc4 {[%clk 0:00:04.8]} 106... Re6 {[%clk 0:00:02.2]} 107. b6
{[%clk 0:00:04.4]} 107... Rxb6 {[%clk 0:00:02.6]} 108. Bxb6 {[%clk 0:00:05.3]}
108... Kxb6 {[%clk 0:00:03.4]} 109. Kd5 {[%clk 0:00:06.2]} 109... Kb7 {[%clk
0:00:02.3]} 110. Rh3 {[%clk 0:00:07.1]} 110... Bb6 {[%clk 0:00:02]} 111. Rb3
{[%clk 0:00:08]} 111... Ka7 {[%clk 0:00:02.3]} 112. Kc6 {[%clk 0:00:08.9]}
112... Bf2 {[%clk 0:00:02.5]} 113. Rb2 {[%clk 0:00:09.3]} 113... Bg1 {[%clk
0:00:02.4]} 114. Ra2+ {[%clk 0:00:10.2]} 114... Kb8 {[%clk 0:00:02.4]} 115. Rg2
{[%clk 0:00:11.1]} 115... Be3 {[%clk 0:00:02.4]} 116. Rg4 {[%clk 0:00:11.7]}
116... Ka8 {[%clk 0:00:02.2]} 117. Rg8+ {[%clk 0:00:11.6]} 117... Ka7 {[%clk
0:00:02.6]} 118. Re8 {[%clk 0:00:12.5]} 118... Bf2 {[%clk 0:00:02.9]} 119. Re7+
{[%clk 0:00:13.2]} 119... Ka8 {[%clk 0:00:02.8]} 120. Re2 {[%clk 0:00:14.1]}
120... Ba7 {[%clk 0:00:02.4]} 121. Ra2 {[%clk 0:00:15]} 121... Kb8 {[%clk
0:00:02.7]} 122. Ra1 {[%clk 0:00:15.9]} 122... Ka8 {[%clk 0:00:03]} 123. Rf1
{[%clk 0:00:16.8]} 123... Bb8 {[%clk 0:00:03.3]} 124. Kb6 {[%clk 0:00:16.5]}
124... Ba7+ {[%clk 0:00:03.9]} 125. Ka6 {[%clk 0:00:17.4]} 125... Bb8 {[%clk
0:00:04.5]} 126. Rf7 {[%clk 0:00:17.8]} 126... Bd6 {[%clk 0:00:04.4]} 127. Rh7
{[%clk 0:00:18.3]} 127... Bb8 {[%clk 0:00:04.4]} 128. Rd7 {[%clk 0:00:19]}
128... Bg3 {[%clk 0:00:04.1]} 129. Kb5 {[%clk 0:00:19.7]} 129... Bf4 {[%clk
0:00:03.8]} 130. Kc6 {[%clk 0:00:20.6]} 130... Bb8 {[%clk 0:00:03.9]} 131. Rd3
{[%clk 0:00:21.5]} 131... Be5 {[%clk 0:00:04]} 132. Ra3+ {[%clk 0:00:21.8]}
132... Kb8 {[%clk 0:00:04.2]} 133. Ra5 {[%clk 0:00:22.7]} 133... Bf4 {[%clk
0:00:04.4]} 134. Rf5 {[%clk 0:00:23]} 134... Bg3 {[%clk 0:00:04.3]} 135. Rf3
{[%clk 0:00:23.2]} 135... Bh2 {[%clk 0:00:04.6]} 136. Rf8+ {[%clk 0:00:24.1]}
136... Ka7 {[%clk 0:00:04.8]} 137. Rh8 {[%clk 0:00:25]} 137... Bg3 {[%clk
0:00:05]} 138. Re8 {[%clk 0:00:25.3]} 138... Bh2 {[%clk 0:00:05.2]} 139. Re2
{[%clk 0:00:25.6]} 139... Bg3 {[%clk 0:00:05.3]} 140. Re4 {[%clk 0:00:26.3]}
140... Bh2 {[%clk 0:00:05.4]} 141. Ra4+ {[%clk 0:00:27.2]} 141... Kb8 {[%clk
0:00:05.5]} 142. Rg4 {[%clk 0:00:28.1]} 142... Be5 {[%clk 0:00:05.1]} 143. Kb6
{[%clk 0:00:27.5]} 143... Bc7+ {[%clk 0:00:04.5]} 144. Kc5 {[%clk 0:00:28.2]}
144... Be5 {[%clk 0:00:04.6]} 145. Kc6 {[%clk 0:00:28.8]} 145... Bh2 {[%clk
0:00:04.1]} 146. Rg8+ {[%clk 0:00:28.7]} 146... Ka7 {[%clk 0:00:04.1]} 147. Rh8
{[%clk 0:00:29.6]} 147... Bg3 {[%clk 0:00:04.4]} 148. Rh3 {[%clk 0:00:30.5]}
148... Bf4 {[%clk 0:00:04.6]} 149. Ra3+ {[%clk 0:00:31.1]} 149... Kb8 {[%clk
0:00:04.5]} 150. Ra4 {[%clk 0:00:32]} 150... Bg3 {[%clk 0:00:04.5]} 151. Rb4+
{[%clk 0:00:32.3]} 151... Ka8 {[%clk 0:00:04.4]} 152. Rb3 {[%clk 0:00:33]}
152... Bh2 {[%clk 0:00:03.9]} 153. Ra3+ {[%clk 0:00:33]} 153... Kb8 {[%clk
0:00:04]} 154. Kb6 {[%clk 0:00:33.8]} 154... Bg1+ {[%clk 0:00:04]} 155. Kb5
{[%clk 0:00:33.9]} 155... Bh2 {[%clk 0:00:04.3]} 156. Rh3 {[%clk 0:00:34.5]}
156... Bf4 {[%clk 0:00:04.6]} 157. Kc6 {[%clk 0:00:35.4]} 157... Ka8 {[%clk
0:00:04.2]} 158. Rb3 {[%clk 0:00:36.3]} 158... Bb8 {[%clk 0:00:03.6]} 1/2-1/2

[Event "Early-Titled-Tuesday-Blitz-March-26-2024"]
[Site "Chess.com"]
[Date "2024.03.26"]
[Round "9"]
[White "AquivaRubinstein"]
[Black "ploxoi"]
[Result "1-0"]
[WhiteElo "2590"]
[BlackElo "2431"]
[TimeControl "180+1"]
[EndTime "9:38:55 PDT"]
[Termination "AquivaRubinstein won by resignation"]

1. d4 {[%clk 0:02:58.7]} 1... e6 {[%clk 0:02:58.1]} 2. c4 {[%clk 0:02:58.6]}
2... d5 {[%clk 0:02:58.2]} 3. Nc3 {[%clk 0:02:59]} 3... c6 {[%clk 0:02:58.1]} 4.
e3 {[%clk 0:02:58.1]} 4... Nf6 {[%clk 0:02:57.7]} 5. Nf3 {[%clk 0:02:58.3]} 5...
Nbd7 {[%clk 0:02:58.1]} 6. Bd3 {[%clk 0:02:58.4]} 6... dxc4 {[%clk 0:02:57.9]}
7. Bxc4 {[%clk 0:02:58.4]} 7... b5 {[%clk 0:02:56.9]} 8. Bd3 {[%clk 0:02:58.3]}
8... Bb7 {[%clk 0:02:55.7]} 9. e4 {[%clk 0:02:56.2]} 9... b4 {[%clk 0:02:55.2]}
10. Na4 {[%clk 0:02:53.9]} 10... c5 {[%clk 0:02:55.4]} 11. dxc5 {[%clk
0:02:36.7]} 11... Nxe4 {[%clk 0:02:39.6]} 12. O-O {[%clk 0:02:26.9]} 12... Nexc5
{[%clk 0:02:38.4]} 13. Nxc5 {[%clk 0:02:26.3]} 13... Bxc5 {[%clk 0:02:39.3]} 14.
Bb5 {[%clk 0:02:24]} 14... Qe7 {[%clk 0:02:36.8]} 15. Ne5 {[%clk 0:02:20.5]}
15... O-O {[%clk 0:02:08]} 16. Qxd7 {[%clk 0:02:19.6]} 16... Qg5 {[%clk
0:01:28.3]} 17. Bxg5 {[%clk 0:02:17.9]} 1-0

[Event "Early-Titled-Tuesday-Blitz-March-26-2024"]
[Site "Chess.com"]
[Date "2024.03.26"]
[Round "9"]
[White "Masterbeaterr"]
[Black "arenal72"]
[Result "0-1"]
[WhiteElo "2454"]
[BlackElo "2616"]
[TimeControl "180+1"]
[EndTime "9:39:37 PDT"]
[Termination "arenal72 won by resignation"]

1. d4 {[%clk 0:03:00.9]} 1... Nf6 {[%clk 0:02:59.4]} 2. c4 {[%clk 0:03:00.3]}
2... e6 {[%clk 0:02:58.7]} 3. Nc3 {[%clk 0:02:59.7]} 3... Bb4 {[%clk 0:02:58.6]}
4. f3 {[%clk 0:03:00]} 4... d5 {[%clk 0:02:54.5]} 5. a3 {[%clk 0:03:00.9]} 5...
Bxc3+ {[%clk 0:02:54.2]} 6. bxc3 {[%clk 0:03:01.8]} 6... c5 {[%clk 0:02:50.1]}
7. cxd5 {[%clk 0:03:01.6]} 7... Nxd5 {[%clk 0:02:49.6]} 8. dxc5 {[%clk
0:02:58.7]} 8... Qa5 {[%clk 0:02:43.1]} 9. e4 {[%clk 0:02:58.2]} 9... Nf6 {[%clk
0:02:42.9]} 10. Be3 {[%clk 0:02:55.9]} 10... O-O {[%clk 0:02:40.1]} 11. Qb3
{[%clk 0:02:53.4]} 11... Qc7 {[%clk 0:02:32]} 12. Bb5 {[%clk 0:02:47.7]} 12...
Nfd7 {[%clk 0:02:21.5]} 13. Qb4 {[%clk 0:02:38]} 13... Nc6 {[%clk 0:02:14]} 14.
Bxc6 {[%clk 0:02:37.4]} 14... bxc6 {[%clk 0:02:13.1]} 15. Ne2 {[%clk 0:02:35.6]}
15... Ba6 {[%clk 0:02:12.7]} 16. Nd4 {[%clk 0:02:29]} 16... Rab8 {[%clk
0:02:05.1]} 17. Qa4 {[%clk 0:02:28.7]} 17... Nxc5 {[%clk 0:02:04.2]} 18. Qxc6
{[%clk 0:02:25.5]} 18... Nd3+ {[%clk 0:01:59.9]} 19. Kd2 {[%clk 0:02:25.1]}
19... Rb2+ {[%clk 0:01:52.6]} 20. Kd1 {[%clk 0:02:25.4]} 20... Qa5 {[%clk
0:01:50.7]} 21. Nc2 {[%clk 0:01:50.5]} 21... Rc8 {[%clk 0:01:41.4]} 22. Qd6
{[%clk 0:01:47.8]} 22... Rxc2 {[%clk 0:01:34.1]} 0-1

[Event "Early-Titled-Tuesday-Blitz-March-26-2024"]
[Site "Chess.com"]
[Date "2024.03.26"]
[Round "9"]
[White "Manukyan_Artak"]
[Black "Byniolus"]
[Result "0-1"]
[WhiteElo "2465"]
[BlackElo "2727"]
[TimeControl "180+1"]
[EndTime "9:40:07 PDT"]
[Termination "Byniolus won on time"]

1. e4 {[%clk 0:03:00.5]} 1... d5 {[%clk 0:02:59.6]} 2. exd5 {[%clk 0:03:00.4]}
2... Nf6 {[%clk 0:02:59.7]} 3. Nc3 {[%clk 0:03:00.6]} 3... Nxd5 {[%clk
0:03:00.1]} 4. Bc4 {[%clk 0:03:00.4]} 4... c6 {[%clk 0:03:00.4]} 5. Qf3 {[%clk
0:02:59.7]} 5... Be6 {[%clk 0:03:00.7]} 6. Nge2 {[%clk 0:02:57.9]} 6... Nc7
{[%clk 0:03:01]} 7. Bxe6 {[%clk 0:02:45.4]} 7... Nxe6 {[%clk 0:03:01.9]} 8. O-O
{[%clk 0:02:44.7]} 8... g6 {[%clk 0:03:01]} 9. d4 {[%clk 0:02:39.1]} 9... Nxd4
{[%clk 0:02:56.9]} 10. Nxd4 {[%clk 0:02:38.3]} 10... Qxd4 {[%clk 0:02:57.8]} 11.
Be3 {[%clk 0:02:37]} 11... Qh4 {[%clk 0:02:30.9]} 12. g3 {[%clk 0:02:24.4]}
12... Qh3 {[%clk 0:02:20.5]} 0-1